[Event "28th Hit Open-A 2024"]
[Site "Nova Gorica"]
[Date "2024.01.29"]
[Round "5.42"]
[White "Mulec, Dejan"]
[Black "Zlatanovic, Marcus"]
[Result "0-1"]
[ECO "D00"]
[WhiteElo "1577"]
[BlackElo "1745"]
[Annotator "NA RC"]
[PlyCount "116"]
[EventDate "2024.01.22"]
[EventType "swiss"]
[EventCountry "SLO"]
[SourceTitle "playchess.com"]
[Source "ChessBase"]
[SourceQuality "1"]
[TimeControl "5400+30"]

1. d4 {[%emt 0:00:02]} d5 {[%emt 0:00:16]} 2. Nc3 {[%emt 0:00:10]} Nf6 {[%emt 0:00:11]} 3. Bf4 {[%emt 0:00:11]} Bf5 {[%emt 0:00:38]} 4. f3 {[%emt 0:00:20]} h6 {[%emt 0:03:43]} 5. g4 {[%emt 0:00:55]} Bg6 {[%emt 0:01:18]} 6. h4 {[%emt 0:03:35]} e6 {[%emt 0:02:46]} 7. e3 {[%emt 0:00:00]} c5 {[%emt 0:07:09]} 8. Bd3 {[%emt 0:00:00]} Bxd3 {[%emt 0:01:54]} 9. Qxd3 {[%emt 0:03:06]} Nc6 {[%emt 0:02:29]} 10. Nge2 {[%emt 0:07:05]} a6 {[%emt 0:11:57]} 11. Kf2 {[%emt 0:08:07]} Bd6 {[%emt 0:03:36]} 12. b3 {[%emt 0:16:21]} Rc8 {[%emt 0:07:48]} 13. Qd2 {[%emt 0:11:26]} Bxf4 {[%emt 0:15:34]} 14. Nxf4 {[%emt 0:00:15]} cxd4 {[%emt 0:00:17]} 15. exd4 {[%emt 0:00:33]} Qb6 {[%emt 0:02:10]} 16. Rad1 {[%emt 0:03:11]} Qxd4+ {[%emt 0:01:37]} 17. Qxd4 {[%emt 0:00:24]} Nxd4 {[%emt 0:00:06]} 18. Rxd4 {[%emt 0:01:44]} Rxc3 {[%emt 0:00:06]} 19. Rd2 {[%emt 0:00:42]} Ke7 {[%emt 0:01:20]} 20. Re1 {[%emt 0:00:27]} g5 {[%emt 0:01:38]} 21. Ne2 {[%emt 0:03:38]} Rc7 {[%emt 0:01:35]} 22. Nd4 {[%emt 0:01:53]} Rhc8 {[%emt 0:02:18]} 23. Nf5+ {[%emt 0:03:10]} Kf8 {[%emt 0:01:49]} 24. Nxh6 {[%emt 0:03:23]} Rxc2 {[%emt 0:00:08]} 25. Ree2 {[%emt 0:01:03]} Rxd2 {[%emt 0:00:06]} 26. Rxd2 {[%emt 0:00:06]} gxh4 {[%emt 0:00:27]} 27. g5 {[%emt 0:00:50]} Nh5 {[%emt 0:01:26]} 28. Rd4 {[%emt 0:02:27]} Rc2+ {[%emt 0:00:57]} 29. Ke3 {[%emt 0:00:54]} Ng3 {[%emt 0:01:30]} 30. Rxh4 {[%emt 0:02:00]} Rxa2 {[%emt 0:00:56]} 31. Rf4 {[%emt 0:03:11]} Nf5+ {[%emt 0:04:05]} 32. Nxf5 {[%emt 0:01:28]} exf5 {[%emt 0:00:06]} 33. Kd4 {[%emt 0:01:36]} Kg7 {[%emt 0:05:16]} 34. Rxf5 {[%emt 0:07:04]} Ra5 {[%emt 0:00:12]} 35. Rf6 {[%emt 0:01:18]} Rb5 {[%emt 0:00:32]} 36. Kc3 {[%emt 0:00:52]} Rc5+ {[%emt 0:01:10]} 37. Kd4 {[%emt 0:00:39]} Rc6 {[%emt 0:02:17]} 38. Rf5 {[%emt 0:04:48]} Rb6 {[%emt 0:00:47]} 39. Kc3 {[%emt 0:00:28]} d4+ {[%emt 0:00:21]} 40. Kc4 {[%emt 0:00:36]} Rd6 {[%emt 0:00:33]} 41. Kd3 {[%emt 0:00:27]} Kg6 {[%emt 0:02:04]} 42. Re5 {[%emt 0:00:26]} Rb6 {[%emt 0:00:29]} 43. Kc4 {[%emt 0:00:25]} d3 {[%emt 0:00:19]} 44. Rd5 {[%emt 0:00:44]} d2 {[%emt 0:00:15]} 45. Rxd2 {[%emt 0:00:08]} Kxg5 {[%emt 0:00:52]} 46. Rd4 {[%emt 0:01:16]} f5 {[%emt 0:00:45]} 47. b4 {[%emt 0:01:14]} Rc6+ {[%emt 0:01:38]} 48. Kd5 {[%emt 0:01:03]} Rc3 {[%emt 0:00:24]} 49. f4+ {[%emt 0:00:54]} Kg4 {[%emt 0:00:04]} 50. Ke5 {[%emt 0:00:47]} Re3+ {[%emt 0:00:18]} 51. Kd5 {[%emt 0:01:06]} Re8 {[%emt 0:01:21]} 52. Rc4 {[%emt 0:00:31]} b5 {[%emt 0:00:21]} 53. Rc6 {[%emt 0:00:17]} Re4 {[%emt 0:01:17]} 54. Rxa6 {[%emt 0:00:28]} Rxb4 {[%emt 0:00:09]} 55. Kc5 {[%emt 0:00:07]} Rxf4 {[%emt 0:00:09]} 56. Kxb5 {[%emt 0:00:09]} Rd4 {[%emt 0:00:07]} 57. Kc5 {[%emt 0:00:13]} Rd8 {[%emt 0:00:13]} 58. Rg6+ {[%emt 0:00:08]} Kf3 {[%emt 0:00:06]} 0-1

[Event "28th Hit Open-A 2024"]
[Site "Nova Gorica"]
[Date "2024.01.29"]
[Round "5.43"]
[White "Vodnik, Val"]
[Black "Milicevic, Zoran"]
[Result "0-1"]
[ECO "D25"]
[WhiteElo "1661"]
[BlackElo "1550"]
[Annotator "NA RC"]
[PlyCount "58"]
[EventDate "2024.01.22"]
[EventType "swiss"]
[EventCountry "SLO"]
[SourceTitle "playchess.com"]
[Source "ChessBase"]
[SourceQuality "1"]
[TimeControl "5400+30"]

1. d4 {[%emt 0:00:02]} d5 {[%emt 0:00:26]} 2. c4 {[%emt 0:00:03]} dxc4 {[%emt 0:00:24]} 3. e3 {[%emt 0:00:07]} Nf6 {[%emt 0:00:26]} 4. Bxc4 {[%emt 0:00:07]} g6 {[%emt 0:00:28]} 5. Nc3 {[%emt 0:00:11]} Bg7 {[%emt 0:00:15]} 6. Nf3 {[%emt 0:01:20]} O-O {[%emt 0:01:05]} 7. O-O {[%emt 0:03:34]} a6 {[%emt 0:01:04]} 8. a4 {[%emt 0:00:25]} Bg4 {[%emt 0:04:15]} 9. Qb3 {[%emt 0:04:26]} Bxf3 {[%emt 0:01:12]} 10. gxf3 {[%emt 0:00:03]} b6 {[%emt 0:03:43]} 11. Ne4 {[%emt 0:02:55]} Nxe4 {[%emt 0:02:20]} 12. fxe4 {[%emt 0:00:33]} e6 {[%emt 0:00:10]} 13. f4 {[%emt 0:35:04]} Nd7 {[%emt 0:02:01]} 14. f5 {[%emt 0:01:10]} Qg5+ {[%emt 0:01:18]} 15. Kh1 {[%emt 0:00:05]} e5 {[%emt 0:07:47]} 16. fxg6 {[%emt 0:08:25]} hxg6 {[%emt 0:00:36]} 17. Rg1 {[%emt 0:01:17]} Qh5 {[%emt 0:07:15]} 18. Rg3 {[%emt 0:13:03]} exd4 {[%emt 0:00:39]} 19. exd4 {[%emt 0:00:04]} Bxd4 {[%emt 0:00:43]} 20. Rg5 {[%emt 0:00:04]} Qh7 {[%emt 0:04:44]} 21. Bf4 {[%emt 0:00:50]} b5 {[%emt 0:05:41]} 22. Bd5 {[%emt 0:08:59]} bxa4 {[%emt 0:04:32]} 23. Qg3 {[%emt 0:00:16]} Kg7 {[%emt 0:07:24]} 24. Bxa8 {[%emt 0:01:04]} Rxa8 {[%emt 0:00:17]} 25. Rxa4 {[%emt 0:01:55]} c5 {[%emt 0:01:06]} 26. Qd3 {[%emt 0:02:12]} Qh4 {[%emt 0:00:53]} 27. Bd2 {[%emt 0:00:42]} Ne5 {[%emt 0:00:51]} 28. Qg3 {[%emt 0:01:42]} Qxe4+ {[%emt 0:00:33]} 29. Qg2 {[%emt 0:00:35]} Qb1+ {[%emt 0:00:40]} 0-1

[Event "28th Hit Open-A 2024"]
[Site "Nova Gorica"]
[Date "2024.01.30"]
[Round "6.1"]
[White "Csonka, Balazs"]
[Black "Basso, Pier Luigi"]
[Result "1/2-1/2"]
[ECO "C67"]
[WhiteElo "2479"]
[BlackElo "2482"]
[Annotator "TA"]
[PlyCount "27"]
[EventDate "2024.01.22"]
[EventType "swiss"]
[EventCountry "SLO"]
[SourceTitle "playchess.com"]
[Source "ChessBase"]
[SourceQuality "1"]
[TimeControl "5400+30"]

{[%evp 12,27,20,12,41,37,31,30,23,14,10,0,0,1,19,19,25,33]} 1. e4 {[%emt 0:00:09]} e5 {[%emt 0:10:32]} 2. Nf3 {[%emt 0:00:12]} Nc6 {[%emt 0:00:06]} 3. Bb5 {[%emt 0:00:07]} Nf6 {[%emt 0:00:25]} 4. O-O {[%emt 0:00:10]} Nxe4 {[%emt 0:00:09]} 5. Re1 {[%emt 0:00:07]} Nd6 {[%emt 0:00:06]} 6. Nxe5 {[%emt 0:00:10]} Be7 {[%emt 0:00:07]} 7. Bf1 {[%emt 0:00:07]} Nf5 {[%emt 0:00:33]} 8. Nf3 {[%emt 0:00:20]} O-O {[%emt 0:00:35]} 9. d4 {[%emt 0:00:08]} d5 {[%emt 0:00:05]} 10. Nc3 {[%emt 0:00:12]} Bb4 {[%emt 0:00:54][%cal Be7b4,Bb4a5,Ba5b6][%mdl 32]} 11. h3 {[%emt 0:00:48]} Nce7 {[%emt 0:03:12]} 12. a3 {[%emt 0:01:02]} Ba5 {[%emt 0:02:11]} 13. b4 {[%emt 0:01:57]} Bb6 {[%emt 0:00:05]} 14. Na4 {[%emt 0:00:05] Weighted Error Value: White=0.04 (flawless) /Black=0.07 (flawless) .  OK:         	White=5     	Black=5} 1/2-1/2

[Event "28th Hit Open-A 2024"]
[Site "Nova Gorica"]
[Date "2024.01.30"]
[Round "6.3"]
[White "Beliavsky, Alexander G"]
[Black "Ashwath, R.."]
[Result "1/2-1/2"]
[ECO "E04"]
[WhiteElo "2475"]
[BlackElo "2284"]
[Annotator "TA"]
[PlyCount "27"]
[EventDate "2024.01.22"]
[EventType "swiss"]
[EventCountry "SLO"]
[SourceTitle "playchess.com"]
[Source "ChessBase"]
[SourceQuality "1"]
[TimeControl "5400+30"]

{[%evp 11,27,18,24,0,33,20,42,0,0,6,24,-8,-2,-26,-30,-40,-32,-174]} 1. d4 {[%emt 0:00:07]} Nf6 {[%emt 0:03:30]} 2. c4 {[%emt 0:00:21]} e6 {[%emt 0:00:20]} 3. Nf3 {[%emt 0:00:22]} d5 {[%emt 0:00:04]} 4. g3 {[%emt 0:00:19]} dxc4 {[%emt 0:01:10]} 5. Bg2 {[%emt 0:00:11]} c6 {[%emt 0:00:22]} 6. Ne5 {[%emt 0:01:07]} Bb4+ {[%emt 0:00:30]} 7. Bd2 {[%emt 0:00:23]} Be7 {[%emt 0:00:32]} 8. e3 {[%emt 0:03:16][%cal Ob1a3]} b5 {[%emt 0:00:16]} 9. b3 {[%emt 0:05:00] White is slightly better.} cxb3 {[%emt 0:03:06]} 10. axb3 {[%emt 0:00:09][%cal Od2a5]} Bb7 {[%emt 0:05:56]} 11. O-O {[%emt 0:02:05][%mdl 1024] White has compensation.} a5 {[%emt 0:05:13]} 12. Qe2 {[%emt 0:16:48]} O-O {[%emt 0:05:35]} 13. Rc1 {[%emt 0:00:56]} b4 {[%emt 0:09:55]} 14. Nxc6 {[%emt 0:06:31] Weighted Error Value: White=0.21 (precise) /Black=0.10 (very precise) .  Mistake:       	White=1     	---        Inaccurate:     	White=2     	Black=1      OK:         	White=2     	Black=2} (14. Be1 $15) 1/2-1/2

[Event "28th Hit Open-A 2024"]
[Site "Nova Gorica"]
[Date "2024.01.30"]
[Round "6.4"]
[White "Kozlovic, Jernej"]
[Black "Ceres, Dragos"]
[Result "0-1"]
[ECO "B52"]
[WhiteElo "2174"]
[BlackElo "2438"]
[Annotator "TA"]
[PlyCount "120"]
[EventDate "2024.01.22"]
[EventType "swiss"]
[EventCountry "SLO"]
[SourceTitle "playchess.com"]
[Source "ChessBase"]
[SourceQuality "1"]
[TimeControl "5400+30"]

{[%evp 23,120,30,50,21,42,0,12,12,23,0,8,-16,0,-9,0,0,0,0,-10,-7,-13,-51,-46,-110,-30,-264,-271,-260,-243,-260,-250,-254,-258,-289,-287,-370,-229,-243,-235,-260,-277,-277,-278,-323,-300,-366,-343,-347,-330,-323,-330,-324,-313,-443,-319,-316,-327,-320,-327,-514,-516,-517,-517,-517,-517,-858,-851,-929,-888,-934,-937,-938,-810,-898,-415,-3247,-3286,-6843,-6415,-29982,-29983,-29982,-29983,-29984,-29985,-29984,-29984,-29986,-29987,-29987,-29988,-29988,-29987,-29987,-29988,-29988,-29989,-29989,-29990]} 1. e4 {[%emt 0:00:05]} c5 {[%emt 0:10:42]} 2. Nf3 {[%emt 0:00:10]} d6 {[%emt 0:00:04]} 3. Bb5+ {[%emt 0:00:41]} Bd7 {[%emt 0:05:53]} 4. Bxd7+ {[%emt 0:00:23]} Nxd7 {[%emt 0:00:08]} 5. O-O {[%emt 0:01:06]} Ngf6 {[%emt 0:00:06]} 6. Qe2 {[%emt 0:01:22]} e6 {[%emt 0:00:14]} 7. b3 {[%emt 0:02:49]} Be7 {[%emt 0:00:26]} 8. Bb2 {[%emt 0:00:21]} O-O {[%emt 0:00:34]} 9. c4 {[%emt 0:01:19]} Rc8 {[%emt 0:00:37]} 10. d4 {[%emt 0:06:09]} cxd4 {[%emt 0:00:14]} 11. Nxd4 {[%emt 0:00:26]} a6 {[%emt 0:00:06]} 12. Nc3 {[%emt 0:01:15]} Qa5 {[%emt 0:00:16]} 13. Rfd1 {[%emt 0:05:55]} Rfe8 {[%emt 0:00:40]} 14. Qd2 {[%emt 0:06:52]} Bd8 {[%emt 0:03:26]} 15. f3 {[%emt 0:07:42] The position is equal.} Bc7 {[%emt 0:03:19]} 16. Kh1 {[%emt 0:09:04]} Qh5 {[%emt 0:01:21]} 17. h3 {[%emt 0:04:55]} Ne5 {[%emt 0:01:59]} 18. Qf2 {[%emt 0:04:27]} Ng6 {[%emt 0:01:35]} 19. Nde2 {[%emt 0:04:49]} b5 {[%emt 0:05:29]} 20. cxb5 {[%emt 0:01:01]} axb5 {[%emt 0:00:06]} 21. Ng3 {[%emt 0:01:14]} Qg5 {[%emt 0:00:40]} 22. e5 {[%emt 0:04:13]} dxe5 {[%emt 0:02:30]} ({Reject} 22... Qxe5 23. Nd5 Qxd5 (23... Qg5 $2 24. Bxf6 Qh6 25. Nxc7 $18) 24. Rxd5 Nxd5 25. Qd2 $16) 23. Bc1 {[%emt 0:05:09]} (23. a4 $15) 23... Qh4 {[%emt 0:00:59]} (23... Bb6 $1 $17 {[%cal Rb6f2]} 24. Bxg5 Bxf2) 24. Nge4 {[%emt 0:06:25] Loses the game.} (24. Nxb5 $11 {and White is okay.} Bb8 25. a4) 24... Qxf2 $19 {[%emt 0:01:17]} 25. Nxf2 {[%emt 0:00:07]} Bb6 {[%emt 0:00:51][%csl LRc3,LRf2]} 26. Nce4 {[%emt 0:02:15]} Nd5 {[%emt 0:01:56]} 27. Nd3 {[%emt 0:02:33]} Red8 {[%emt 0:00:17] Prevents Nd6.} 28. Bd2 {[%emt 0:02:42]} f5 {[%emt 0:02:07]} 29. Ng3 {[%emt 0:04:24]} Rc2 {[%emt 0:03:36]} 30. Ne1 {[%emt 0:04:32] White is weak on the dark squares} Rc7 {[%emt 0:01:26]} 31. Rdc1 {[%emt 0:03:16]} Ra7 {[%emt 0:01:24]} 32. a4 {[%emt 0:01:47]} Rda8 {[%emt 0:00:22]} 33. Rc6 {[%emt 0:04:24]} Kf7 {[%emt 0:01:00][%cal Rb5a4]} 34. Rd6 {[%emt 0:01:27]} bxa4 {[%emt 0:04:26]} 35. bxa4 {[%emt 0:00:02]} Bc7 {[%emt 0:02:25]} 36. Rc6 {[%emt 0:01:52]} Rxa4 {[%emt 0:00:24]} 37. Rac1 {[%emt 0:00:19]} R8a7 {[%emt 0:00:46]} 38. Nd3 {[%emt 0:01:19]} (38. Ne2 $142) 38... Ra1 {[%emt 0:01:08]} 39. Rxa1 {[%emt 0:00:38]} Rxa1+ {[%emt 0:00:09]} 40. Rc1 {[%emt 0:00:24]} Ra2 {[%emt 0:00:30]} 41. Nb4 {[%emt 0:00:25]} (41. Nf1 {was worth a try.}) 41... Rxd2 {[%emt 0:00:09]} 42. Nxd5 {[%emt 0:00:03]} Ba5 {[%emt 0:02:42]} 43. Ne3 {[%emt 0:00:48]} f4 {[%emt 0:01:09][%csl LRe3,LRg3]} 44. Nc4 {[%emt 0:00:21] [#]} (44. Nef1 $142 fxg3 45. Nxg3) 44... fxg3 $1 {[%emt 0:00:08]} 45. Nxd2 {[%emt 0:00:20]} (45. Rb1 Rd5) 45... Bxd2 {[%emt 0:00:08]} 46. Rc7+ {[%emt 0:00:31]} Kf6 {[%emt 0:00:07]} 47. Kg1 {[%emt 0:00:28]} Nf4 {[%emt 0:00:17]} 48. Rc4 {[%emt 0:00:59]} Be3+ {[%emt 0:00:10]} 49. Kf1 {[%emt 0:00:34]} (49. Kh1 $142) 49... Bf2 {[%emt 0:00:25] [#] White must now prevent ...Nd5.} 50. Re4 {[%emt 0:00:36]} Nd5 {[%emt 0:00:09]} 51. Ke2 {[%emt 0:00:28] Against Ne3} Nc3+ {[%emt 0:00:07] Black mates.} 52. Kd3 {[%emt 0:00:09]} Nxe4 {[%emt 0:00:46]} 53. Kxe4 {[%emt 0:00:19] KB-K3P} g5 {[%emt 0:00:24]} 54. Kd3 {[%emt 0:00:19]} Kf5 {[%emt 0:00:06]} 55. Ke2 {[%emt 0:00:14]} e4 {[%emt 0:00:28]} 56. fxe4+ {[%emt 0:00:04]} Kxe4 {[%emt 0:00:03]} 57. Kd2 {[%emt 0:00:06]} Kf4 {[%emt 0:00:09]} 58. Kd3 {[%emt 0:00:09]} h5 {[%emt 0:00:24]} 59. Ke2 {[%emt 0:00:11]} h4 {[%emt 0:00:03]} 60. Kd3 {[%emt 0:00:06]} g4 {[%emt 0:00:08] Weighted Error Value: White=0.62/Black=0.19 (very precise) .  Loses game:     	White=1     	---        Mistake:       	White=4     	Black=1      Inaccurate:     	White=3     	Black=1      OK:         	White=6     	Black=16     Best:        	White=1     	Black=5} 0-1

[Event "28th Hit Open-A 2024"]
[Site "Nova Gorica"]
[Date "2024.01.30"]
[Round "6.5"]
[White "Karacsonyi, Gellert"]
[Black "Ceschia, Ivano"]
[Result "1-0"]
[ECO "B33"]
[WhiteElo "2398"]
[BlackElo "2183"]
[Annotator "TA"]
[PlyCount "77"]
[EventDate "2024.01.22"]
[EventType "swiss"]
[EventCountry "SLO"]
[SourceTitle "playchess.com"]
[Source "ChessBase"]
[SourceQuality "1"]
[TimeControl "5400+30"]

{[%evp 12,77,56,22,52,52,57,50,61,58,49,64,66,53,58,50,52,49,56,24,24,44,16,7,110,112,172,74,83,70,72,70,81,79,79,83,133,141,144,124,166,168,168,180,275,258,351,170,362,341,697,509,573,549,540,553,805,565,569,407,504,502,6199,477,6199,6179,5314,5314]} 1. e4 {[%emt 0:01:33]} c5 {[%emt 0:04:09]} 2. Nf3 {[%emt 0:00:10]} Nc6 {[%emt 0:00:23]} 3. d4 {[%emt 0:00:12]} cxd4 {[%emt 0:00:05]} 4. Nxd4 {[%emt 0:00:06]} Qb6 {[%emt 0:00:04]} 5. Nb3 {[%emt 0:00:31]} Nf6 {[%emt 0:00:08]} 6. Nc3 {[%emt 0:00:53]} e6 {[%emt 0:00:06]} 7. Qe2 {[%emt 0:00:39]} Be7 {[%emt 0:01:21]} 8. Be3 {[%emt 0:00:59]} Qc7 {[%emt 0:01:55]} 9. O-O-O {[%emt 0:00:19]} d5 {[%emt 0:10:26] White is slightly better.} 10. exd5 {[%emt 0:01:13]} Nxd5 {[%emt 0:00:17]} 11. Nxd5 {[%emt 0:00:13]} exd5 {[%emt 0:00:05]} 12. g4 {[%emt 0:01:13][%cal Of1g2]} O-O {[%emt 0:03:10]} 13. Bg2 {[%emt 0:00:36][%cal Oh2h3]} Re8 {[%emt 0:20:27]} 14. Kb1 {[%emt 0:13:04]} (14. Rxd5 Be6 15. Rd2 a5 $11) 14... Bf6 {[%emt 0:18:40]} 15. Bxd5 {[%emt 0:18:05] Threatening Qc4.} (15. g5 Bxg5 16. Rxd5 Bxe3 17. fxe3 Be6 $15) 15... Nb4 {[%emt 0:05:31] ...Qe5 would now be deadly.} 16. Bf3 {[%emt 0:08:11]} Be6 {[%emt 0:01:21] White must now prevent ...Rac8.} 17. a3 {[%emt 0:21:28]} Qe5 {[%emt 0:12:41]} 18. Nd4 $36 {[%emt 0:03:22][%mdl 2048] White is in control.} (18. axb4 $2 Qxb2#) 18... Nd5 {[%emt 0:04:00] [#]} (18... Nc6 $16) 19. g5 {[%emt 0:05:31]} Bxg5 {[%emt 0:01:46]} 20. Bxg5 {[%emt 0:02:42]} Qxg5 {[%emt 0:00:19]} 21. Nxe6 {[%emt 0:01:09]} fxe6 {[%emt 0:03:17][%cal Bf7e6,Be6d5,Bd5d4][%mdl 32]} 22. Bxd5 {[%emt 0:02:41]} exd5 {[%emt 0:00:08]} 23. Qb5 {[%emt 0:00:06][%csl LRb7,LRd5]} Red8 {[%emt 0:01:47]} (23... b6 $142) 24. Qxb7 {[%emt 0:01:43]} Qf6 {[%emt 0:00:46] [#] Strongly threatening ...Rab8.} 25. b3 $1 {[%emt 0:01:55] White is more active.} (25. Rxd5 $2 Rdb8 $19 (25... Qxf2 $2 26. Rhd1 $18) (25... Qxf2 $2 26. Rhd1 $18)) 25... d4 {[%emt 0:03:14][%cal Oa8b8]} 26. Rhg1 {[%emt 0:01:12]} g6 {[%emt 0:00:22]} 27. Rge1 {[%emt 0:01:00]} Rab8 {[%emt 0:05:15]} (27... Qb6 $142 28. Qxb6 axb6) 28. Qxa7 $18 {[%emt 0:02:42]} Qf3 {[%emt 0:00:33][%cal Ob8b3]} 29. Qa4 {[%emt 0:04:30]} (29. Rxd4 Rxb3+ 30. Ka2 (30. cxb3 Qxb3+ 31. Ka1 Qc3+ 32. Ka2 Qc2+ 33. Ka1 Qc3+ 34. Ka2 Qc2+ 35. Ka1 Qc3+ $11) 30... Rdb8 $11) (29. Rd3 $142 Qf6 30. Rxd4 Rxd4 (30... Qxd4 $2 31. Re8+ Rxe8 32. Qxd4 $18) 31. Qxb8+ Kg7 32. a4 (32. Qe5 Rd1+ 33. Ka2 Qxe5 $18)) 29... Qxf2 {[%emt 0:00:35]} (29... Qc3 {was necessary.} 30. b4 Ra8 31. Qb3+ Qxb3+ 32. cxb3 Rxa3) 30. Qc4+ {[%emt 0:00:04]} Kg7 $2 {[%emt 0:00:28]} (30... Kh8 31. Re7 Qf6) 31. Rf1 {[%emt 0:02:03][%cal Be1f1,Bf1f4,Bf4h4][%mdl 32]} Qh4 {[%emt 0:00:35]} 32. Qc7+ {[%emt 0:00:06]} (32. Rf7+ Kh8 33. Qc7 Kg8 34. Rg7+ Kh8 $18) 32... Kg8 {[%emt 0:00:52]} 33. Rf4 {[%emt 0:00:45]} Qh3 {[%emt 0:00:54][%cal Ob8b3]} 34. Qf7+ {[%emt 0:04:23]} (34. Rfxd4 Rxb3+ 35. cxb3 Qxb3+ 36. Kc1 Qxa3+ 37. Kc2 Qa2+ 38. Kc3 (38. Kd3 Qb3+ 39. Ke2 Re8+ 40. Kf2 Qe3+ 41. Kg2 Qe2+ 42. Kg1 Qe3+ 43. Kh1 Qf3+ 44. Kg1 Qe3+ 45. Kh1 Qf3+ 46. Kg1 Qe3+ $11) 38... Qa3+ 39. Kc2 Qa2+ 40. Kc1 (40. Kd3 Qb3+ 41. Ke2 Re8+ 42. Kd2 Qb2+ 43. Kd3 Qb3+ 44. Kd2 Qb2+ 45. Kd3 Qb3+ 46. Kd2 $11) 40... Qa3+ 41. Kc2 $11) 34... Kh8 {[%emt 0:00:03]} 35. Qf6+ {[%emt 0:00:04]} (35. Rfxd4 Rf8 36. Qe7 Rbe8) 35... Kg8 {[%emt 0:00:03][%cal Ob8b3] ( -> ...Rxb3+!)} 36. Rd3 {[%emt 0:00:29] White is clearly winning.} ({And not} 36. Rfxd4 Rxb3+ 37. Kc1 (37. cxb3 {leads to mate.} Qxb3+ 38. Ka1 Qxa3+ 39. Kb1 Qb3+ 40. Kc1 Qc3+ 41. Kb1 Rb8+) 37... Qe3+ 38. R1d2 Qe1+ 39. Rd1 Qe3+ 40. R1d2 Rf8 $11) 36... Qg2 {[%emt 0:00:49]} (36... Qh6 $142 37. Rdxd4 (37. Rfxd4 Rf8 $18) 37... Rf8) 37. Qf7+ {[%emt 0:00:29]} Kh8 {[%emt 0:00:02]} 38. Rh4 {[%emt 0:01:04][%csl Gf7][%cal Rh4h7]} h5 {[%emt 0:00:30]} 39. Rg3 {[%emt 0:00:35] Weighted Error Value: White=0.38/Black=0.50.  Mistake:       	White=2     	Black=7      Inaccurate:     	---       	Black=4      OK:         	White=16    	Black=10     Best:        	White=3     	Black=2} 1-0

[Event "28th Hit Open-A 2024"]
[Site "Nova Gorica"]
[Date "2024.01.30"]
[Round "6.6"]
[White "Plaskan, Jure"]
[Black "Kulkarni Bhakti"]
[Result "1/2-1/2"]
[ECO "C60"]
[WhiteElo "2262"]
[BlackElo "2364"]
[Annotator "TA"]
[PlyCount "73"]
[EventDate "2024.01.22"]
[EventType "swiss"]
[EventCountry "SLO"]
[SourceTitle "playchess.com"]
[Source "ChessBase"]
[SourceQuality "1"]
[TimeControl "5400+30"]

{[%evp 9,73,35,72,6,11,14,20,16,8,2,23,33,56,0,71,0,36,-462,0,0,0,1,0,0,0,0,0,2,27,40,97,97,101,102,130,104,127,122,129,116,124,118,128,133,119,54,53,66,62,63,63,12,30,0,0,0,0,0,0,0,0,0,0,0,0,0]} 1. e4 {[%emt 0:02:46]} e5 {[%emt 0:00:41]} 2. Nf3 {[%emt 0:00:00]} Nc6 {[%emt 0:00:25]} 3. Bb5 {[%emt 0:00:01]} Nge7 {[%emt 0:00:39]} 4. O-O {[%emt 0:02:54]} Ng6 {[%emt 0:00:22]} 5. c3 {[%emt 0:03:11]} d5 {[%emt 0:01:32]} 6. d4 {[%emt 0:22:23]} (6. Qa4 $16) 6... dxe4 $11 {[%emt 0:02:52]} 7. Bxc6+ {[%emt 0:01:17]} bxc6 {[%emt 0:00:05]} 8. Nxe5 {[%emt 0:00:04]} Bd6 {[%emt 0:13:29]} (8... Nxe5 {simplifies} 9. dxe5 Qxd1 10. Rxd1 Bc5) 9. f4 {[%emt 0:12:14]} exf3 {[%emt 0:11:47] [#]} (9... O-O {simplifies} 10. Nxc6 Qe8 11. Ne5 Ba6) 10. Nxf7 $1 {[%emt 0:18:28]} Bxh2+ $1 {[%emt 0:18:50]} 11. Kxh2 {[%emt 0:00:18]} Qh4+ {[%emt 0:00:06]} 12. Kg1 {[%emt 0:00:03]} Bg4 $1 {[%emt 0:00:18] [#]} 13. Qc2 $2 {[%emt 0:17:28][%mdl 8192] [#]} Kxf7 $2 {[%emt 0:01:10]} (13... O-O $1 $19 14. Qf2 (14. Bg5 $2 Qh5 $19) 14... fxg2 (14... Kxf7 $2 15. Nd2 $17) (14... Qxf2+ $2 15. Rxf2 Rxf7 16. Nd2 $19) 15. Qxg2 Bh3 (15... Rxf7 $2 16. Rxf7 Kxf7 17. Qf2+ Kg8 18. Qxh4 $19)) 14. Nd2 $1 {[%emt 0:00:15] Dancing on a razor blade.} Rhf8 {[%emt 0:02:16]} 15. Nxf3 {[%emt 0:00:32]} Bxf3 {[%emt 0:00:15]} 16. Rxf3+ {[%emt 0:00:38]} Kg8 {[%emt 0:00:06]} 17. Rxf8+ {[%emt 0:07:52]} Rxf8 {[%emt 0:00:04]} 18. Qe2 $36 {[%emt 0:02:30][%mdl 2048] Prevents Qe1+. White is pushing.} Qg3 {[%emt 0:02:45] aiming for ...Nh4.} 19. Bd2 {[%emt 0:00:11]} h5 {[%emt 0:05:19]} 20. Rf1 $16 {[%emt 0:00:23]} (20. Qxh5 $2 {perishes.} Nh4 $19 (20... Rf2 $2 21. Qh2 $19) (20... Rf2 $2 21. Qh3 $19)) 20... Rxf1+ {[%emt 0:00:29]} 21. Kxf1 {[%emt 0:00:07][%mdl 4096] Endgame. KQB-KQN} h4 {[%emt 0:04:57]} 22. Qe4 {[%emt 0:02:33]} Qd6 {[%emt 0:02:46]} 23. Bg5 {[%emt 0:00:25]} Kf7 {[%emt 0:10:40]} 24. Bxh4 {[%emt 0:01:01] White is much more active.} Nxh4 {[%emt 0:00:56]} 25. Qxh4 {[%emt 0:00:05] KQ-KQ} Qg6 {[%emt 0:00:10]} 26. Qe1 {[%emt 0:03:15] Against Qb1} c5 {[%emt 0:01:27]} 27. Kg1 {[%emt 0:02:13]} ({White should try} 27. dxc5 $16 {Hoping for b4.} Qa6+ 28. Kg1 Qxa2 29. Qf1+ Ke7 30. Qe2+ Kf7 31. Qf3+ Kg8 32. b4) 27... cxd4 $14 {[%emt 0:00:59]} 28. cxd4 {[%emt 0:00:08]} Kg8 {[%emt 0:01:07]} 29. a3 {[%emt 0:00:16]} c6 {[%emt 0:02:49]} 30. Qc3 {[%emt 0:01:13] Dodges Qc2} (30. b3 $1 $14) 30... Qe4 {[%emt 0:00:32]} 31. g3 {[%emt 0:00:28]} Qe2 {[%emt 0:00:52] The position is equal.} 32. b4 {[%emt 0:00:29]} Kh8 {[%emt 0:00:28]} 33. Qxc6 {[%emt 0:00:40] Black must now prevent Qc8+.} Qd1+ $1 {[%emt 0:00:54]} 34. Kh2 {[%emt 0:00:31]} Qh5+ $1 {[%emt 0:00:07]} 35. Kg2 {[%emt 0:00:24]} Qe2+ {[%emt 0:00:04]} 36. Kg1 {[%emt 0:00:16] Qc8+ would now be deadly.} Qd1+ $1 {[%emt 0:00:07]} 37. Kg2 {[%emt 0:00:41] Weighted Error Value: White=0.25 (precise) /Black=0.33.  Loses game:     	White=1     	---        Missed win:     	---       	Black=1      Mistake:       	White=2     	Black=1      Inaccurate:     	White=2     	---        OK:         	White=7     	Black=6      Best:        	White=1     	Black=4      Strong:       	White=1     	Black=5      Brilliant:      	White=1     	---} 1/2-1/2